Workbook

Sheet Blad1
A1: 1 | C1: Yellow | D1: Orange | E1: Blue | F1: Cyan | G1: White | H1: Red | I1: Black | J1: Pink | K1: Purple | L1: Green | O1: Yellow | P1: Orange | Q1: Blue | R1: Cyan | S1: White | T1: Red | U1: Black | V1: Pink | W1: Purple | X1: Green | AB1: %
A2: Yellow | C2: =IF($A2=C$1,$A3,"") -> Orange | D2: =IF($A2=D$1,$A3,"") ->  | E2: =IF($A2=E$1,$A3,"") ->  | F2: =IF($A2=F$1,$A3,"") ->  | G2: =IF($A2=G$1,$A3,"") ->  | H2: =IF($A2=H$1,$A3,"") ->  | I2: =IF($A2=I$1,$A3,"") ->  | J2: =IF($A2=J$1,$A3,"") ->  | K2: =IF($A2=K$1,$A3,"") ->  | L2: =IF($A2=L$1,$A3,"") ->  | N2: Yellow | O2: =COUNTIF(C$2:C$282,$N2) -> 2 | P2: =COUNTIF(D$2:D$282,$N2) -> 2 | Q2: =COUNTIF(E$2:E$282,$N2) -> 1 | R2: =COUNTIF(F$2:F$282,$N2) -> 2 | S2: =COUNTIF(G$2:G$282,$N2) -> 1 | T2: =COUNTIF(H$2:H$282,$N2) -> 5 | U2: =COUNTIF(I$2:I$282,$N2) -> 5 | V2: =COUNTIF(J$2:J$282,$N2) -> 1 | W2: =COUNTIF(K$2:K$282,$N2) -> 4 | X2: =COUNTIF(L$2:L$282,$N2) -> 3 | Z2: Yellow | AA2: =COUNTIF(A:A,Z2) -> 27 | AB2: =SUM((AA2/$AA$12)*100) -> 9.608540925
A3: Orange | D3: Orange | N3: Orange | O3: 3 | P3: 8 | Q3: 2 | R3: 4 | S3: 1 | T3: 0 | U3: 4 | V3: 6 | W3: 3 | X3: 2 | Z3: Orange | AA3: 32 | AB3: 11.38790036
A4: Orange | D4: Orange | N4: Blue | O4: 1 | P4: 2 | Q4: 2 | R4: 5 | S4: 3 | T4: 2 | U4: 3 | V4: 4 | W4: 2 | X4: 3 | Z4: Blue | AA4: 27 | AB4: 9.608540925
A5: Orange | D5: Blue | N5: Cyan | O5: 6 | P5: 2 | Q5: 4 | R5: 4 | S5: 1 | T5: 5 | U5: 2 | V5: 0 | W5: 4 | X5: 3 | Z5: Cyan | AA5: 31 | AB5: 11.03202847
A6: Blue | E6: Red | N6: White | O6: 0 | P6: 2 | Q6: 2 | R6: 6 | S6: 1 | T6: 2 | U6: 4 | V6: 2 | W6: 2 | X6: 2 | Z6: White | AA6: 23 | AB6: 8.185053381
A7: Red | H7: Red | N7: Red | O7: 2 | P7: 4 | Q7: 5 | R7: 3 | S7: 1 | T7: 2 | U7: 2 | V7: 3 | W7: 0 | X7: 4 | Z7: Red | AA7: 26 | AB7: 9.252669039
A8: Red | H8: Red | N8: Black | O8: 6 | P8: 2 | Q8: 6 | R8: 2 | S8: 4 | T8: 2 | U8: 0 | V8: 1 | W8: 4 | X8: 1 | Z8: Black | AA8: 28 | AB8: 9.964412811
A9: Red | H9: White | N9: Pink | O9: 3 | P9: 5 | Q9: 3 | R9: 0 | S9: 2 | T9: 2 | U9: 0 | V9: 1 | W9: 7 | X9: 2 | Z9: Pink | AA9: 25 | AB9: 8.896797153
A10: White | G10: Blue | N10: Purple | O10: 3 | P10: 2 | Q10: 1 | R10: 4 | S10: 5 | T10: 1 | U10: 4 | V10: 3 | W10: 7 | X10: 4 | Z10: Purple | AA10: 34 | AB10: 12.09964413
A11: Blue | E11: Green | N11: Green | O11: 1 | P11: 3 | Q11: 1 | R11: 1 | S11: 4 | T11: 5 | U11: 4 | V11: 4 | W11: 1 | X11: 4 | Z11: Green | AA11: 28 | AB11: 9.964412811
A12: Green | L12: Yellow | N12: Totaal | O12: =SUM(O2:O11) -> 27 | P12: =SUM(P2:P11) -> 32 | Q12: 27 | R12: 31 | S12: 23 | T12: 26 | U12: 28 | V12: 25 | W12: 34 | X12: 28 | AA12: =SUM(AA2:AA11) -> 281 | AB12: =SUM(AB2:AB11) -> 100
A13: Yellow | C13: Black
A14: Black | I14: White | O14: Yellow | P14: Orange | Q14: Blue | R14: Cyan | S14: White | T14: Red | U14: Black | V14: Pink | W14: Purple | X14: Green
A15: White | G15: Purple | N15: Yellow | O15: =SUM(O2/O$12)*100 -> 7.407407407 | P15: 6.25 | Q15: 3.703703704 | R15: 6.451612903 | S15: 4.347826087 | T15: 19.23076923 | U15: 17.85714286 | V15: 4 | W15: 11.76470588 | X15: 10.71428571
A16: Purple | K16: Cyan | N16: Orange | O16: =SUM(O3/O$12)*100 -> 11.11111111 | P16: 25 | Q16: 7.407407407 | R16: 12.90322581 | S16: 4.347826087 | T16: 0 | U16: 14.28571429 | V16: 24 | W16: 8.823529412 | X16: 7.142857143
A17: Cyan | F17: White | N17: Blue | O17: =SUM(O4/O$12)*100 -> 3.703703704 | P17: 6.25 | Q17: 7.407407407 | R17: 16.12903226 | S17: 13.04347826 | T17: 7.692307692 | U17: 10.71428571 | V17: 16 | W17: 5.882352941 | X17: 10.71428571
A18: White | G18: Purple | N18: Cyan | O18: =SUM(O5/O$12)*100 -> 22.22222222 | P18: 6.25 | Q18: 14.81481481 | R18: 12.90322581 | S18: 4.347826087 | T18: 19.23076923 | U18: 7.142857143 | V18: 0 | W18: 11.76470588 | X18: 10.71428571
A19: Purple | K19: Orange | N19: White | O19: =SUM(O6/O$12)*100 -> 0 | P19: 6.25 | Q19: 7.407407407 | R19: 19.35483871 | S19: 4.347826087 | T19: 7.692307692 | U19: 14.28571429 | V19: 8 | W19: 5.882352941 | X19: 7.142857143
A20: Orange | D20: Red | N20: Red | O20: =SUM(O7/O$12)*100 -> 7.407407407 | P20: 12.5 | Q20: 18.51851852 | R20: 9.677419355 | S20: 4.347826087 | T20: 7.692307692 | U20: 7.142857143 | V20: 12 | W20: 0 | X20: 14.28571429
A21: Red | H21: White | N21: Black | O21: =SUM(O8/O$12)*100 -> 22.22222222 | P21: 6.25 | Q21: 22.22222222 | R21: 6.451612903 | S21: 17.39130435 | T21: 7.692307692 | U21: 0 | V21: 4 | W21: 11.76470588 | X21: 3.571428571
A22: White | G22: Black | N22: Pink | O22: =SUM(O9/O$12)*100 -> 11.11111111 | P22: 15.625 | Q22: 11.11111111 | R22: 0 | S22: 8.695652174 | T22: 7.692307692 | U22: 0 | V22: 4 | W22: 20.58823529 | X22: 7.142857143
A23: Black | I23: Orange | N23: Purple | O23: =SUM(O10/O$12)*100 -> 11.11111111 | P23: 6.25 | Q23: 3.703703704 | R23: 12.90322581 | S23: 21.73913043 | T23: 3.846153846 | U23: 14.28571429 | V23: 12 | W23: 20.58823529 | X23: 14.28571429
A24: Orange | D24: Pink | N24: Green | O24: =SUM(O11/O$12)*100 -> 3.703703704 | P24: 9.375 | Q24: 3.703703704 | R24: 3.225806452 | S24: 17.39130435 | T24: 19.23076923 | U24: 14.28571429 | V24: 16 | W24: 2.941176471 | X24: 14.28571429
A25: Pink | J25: White | N25: Totaal | O25: =SUM(O15:O24) -> 100 | P25: =SUM(P15:P24) -> 100 | Q25: =SUM(Q15:Q24) -> 100 | R25: =SUM(R15:R24) -> 100 | S25: =SUM(S15:S24) -> 100 | T25: =SUM(T15:T24) -> 100 | U25: =SUM(U15:U24) -> 100 | V25: =SUM(V15:V24) -> 100 | W25: =SUM(W15:W24) -> 100 | X25: =SUM(X15:X24) -> 100
A26: White | G26: Yellow
A27: Yellow | C27: Blue
A28: Blue | E28: Orange
A29: Orange | D29: Orange
A30: Orange | D30: Orange
A31: Orange | D31: White
A32: White | G32: Pink
A33: Pink | J33: Orange
A34: Orange | D34: Red
A35: Red | H35: Cyan
A36: Cyan | F36: Black
A37: Black | I37: Yellow
A38: Yellow | C38: Black
A39: Black | I39: Yellow
A40: Yellow | C40: Pink
A41: Pink | J41: Blue
A42: Blue | E42: Purple
A43: Purple | K43: Pink
A44: Pink | J44: Pink
A45: Pink | J45: Green
A46: Green | L46: Cyan
A47: Cyan | F47: Purple
A48: Purple | K48: Pink
A49: Pink | J49: Red
A50: Red | H50: Pink
A51: Pink | J51: Orange
A52: Orange | D52: Green
A53: Green | L53: Yellow
A54: Yellow | C54: Red
A55: Red | H55: Black
A56: Black | I56: Purple
A57: Purple | K57: Pink
A58: Pink | J58: White
A59: White | G59: Purple
A60: Purple | K60: Purple
A61: Purple | K61: Black
A62: Black | I62: Orange
A63: Orange | D63: Yellow
A64: Yellow | C64: Purple
A65: Purple | K65: Cyan
A66: Cyan | C66: =IF($A66=C$1,$A67,"") ->  | D66: =IF($A66=D$1,$A67,"") ->  | E66: =IF($A66=E$1,$A67,"") ->  | F66: =IF($A66=F$1,$A67,"") -> Cyan | G66: =IF($A66=G$1,$A67,"") ->  | H66: =IF($A66=H$1,$A67,"") ->  | I66: =IF($A66=I$1,$A67,"") ->  | J66: =IF($A66=J$1,$A67,"") ->  | K66: =IF($A66=K$1,$A67,"") ->  | L66: =IF($A66=L$1,$A67,"") -> 
A67: Cyan | F67: Red
A68: Red | H68: Blue
A69: Blue | E69: Yellow
A70: Yellow | C70: Cyan
A71: Cyan | F71: Orange
A72: Orange | D72: Black
A73: Black | I73: Green
A74: Green | L74: Red
A75: Red | H75: Yellow
A76: Yellow | C76: Cyan
A77: Cyan | F77: White
A78: White | G78: Pink
A79: Pink | J79: Purple
A80: Purple | K80: Blue
A81: Blue | E81: Red
A82: Red | H82: Cyan
A83: Cyan | F83: Red
A84: Red | H84: Green
A85: Green | L85: Purple
A86: Purple | K86: Purple
A87: Purple | K87: Pink
A88: Pink | J88: Orange
A89: Orange | D89: Pink
A90: Pink | J90: Purple
A91: Purple | K91: Cyan
A92: Cyan | F92: Orange
A93: Orange | D93: Red
A94: Red | H94: Green
A95: Green | L95: Red
A96: Red | H96: Cyan
A97: Cyan | F97: Orange
A98: Orange | D98: Cyan
A99: Cyan | F99: White
A100: White | G100: Red
A101: Red | H101: Cyan
A102: Cyan | F102: Cyan
A103: Cyan | F103: Blue
A104: Blue | E104: Black
A105: Black | I105: Red
A106: Red | H106: Cyan
A107: Cyan | F107: Purple
A108: Purple | K108: Yellow
A109: Yellow | C109: Pink
A110: Pink | J110: Red
A111: Red | H111: Pink
A112: Pink | J112: Blue
A113: Blue | E113: Blue
A114: Blue | E114: Cyan
A115: Cyan | F115: Green
A116: Green | L116: Cyan
A117: Cyan | F117: Yellow
A118: Yellow | C118: Black
A119: Black | I119: Purple
A120: Purple | K120: Yellow
A121: Yellow | C121: Orange
A122: Orange | D122: Pink
A123: Pink | J123: Green
A124: Green | L124: Blue
A125: Blue | E125: Black
A126: Black | I126: Orange
A127: Orange | D127: Pink
A128: Pink | J128: Red
A129: Red | H129: Yellow
A130: Yellow | C130: =IF($A130=C$1,$A131,"") -> Pink | D130: =IF($A130=D$1,$A131,"") ->  | E130: =IF($A130=E$1,$A131,"") ->  | F130: =IF($A130=F$1,$A131,"") ->  | G130: =IF($A130=G$1,$A131,"") ->  | H130: =IF($A130=H$1,$A131,"") ->  | I130: =IF($A130=I$1,$A131,"") ->  | J130: =IF($A130=J$1,$A131,"") ->  | K130: =IF($A130=K$1,$A131,"") ->  | L130: =IF($A130=L$1,$A131,"") -> 
A131: Pink | J131: Green
A132: Green | L132: Purple
A133: Purple | K133: Purple
A134: Purple | K134: White
A135: White | G135: Purple
A136: Purple | K136: Purple
A137: Purple | K137: Orange
A138: Orange | D138: Green
A139: Green | L139: Yellow
A140: Yellow | C140: Orange
A141: Orange | D141: Purple
A142: Purple | K142: Purple
A143: Purple | K143: Pink
A144: Pink | J144: Yellow
A145: Yellow | C145: Cyan
A146: Cyan | F146: White
A147: White | G147: Blue
A148: Blue | E148: Black
A149: Black | I149: Blue
A150: Blue | E150: Pink
A151: Pink | J151: Purple
A152: Purple | K152: Blue
A153: Blue | E153: Black
A154: Black | I154: Yellow
A155: Yellow | C155: Black
A156: Black | I156: Orange
A157: Orange | D157: Orange
A158: Orange | D158: Green
A159: Green | L159: White
A160: White | G160: Black
A161: Black | I161: Green
A162: Green | L162: Green
A163: Green | L163: Pink
A164: Pink | J164: Orange
A165: Orange | D165: Orange
A166: Orange | D166: Yellow
A167: Yellow | C167: Cyan
A168: Cyan | F168: Purple
A169: Purple | K169: Cyan
A170: Cyan | F170: Cyan
A171: Cyan | F171: Blue
A172: Blue | E172: Red
A173: Red | H173: Purple
A174: Purple | K174: Yellow
A175: Yellow | C175: Yellow
A176: Yellow | C176: Cyan
A177: Cyan | F177: Orange
A178: Orange | D178: Red
A179: Red | H179: Yellow
A180: Yellow | C180: Red
A181: Red | H181: Green
A182: Green | L182: Green
A183: Green | L183: Purple
A184: Purple | K184: Yellow
A185: Yellow | C185: Purple
A186: Purple | K186: Orange
A187: Orange | D187: Blue
A188: Blue | E188: Blue
A189: Blue | E189: Black
A190: Black | I190: Green
A191: Green | L191: Blue
A192: Blue | E192: Cyan
A193: Cyan | F193: Blue
A194: Blue | C194: =IF($A194=C$1,$A195,"") ->  | D194: =IF($A194=D$1,$A195,"") ->  | E194: =IF($A194=E$1,$A195,"") -> Cyan | F194: =IF($A194=F$1,$A195,"") ->  | G194: =IF($A194=G$1,$A195,"") ->  | H194: =IF($A194=H$1,$A195,"") ->  | I194: =IF($A194=I$1,$A195,"") ->  | J194: =IF($A194=J$1,$A195,"") ->  | K194: =IF($A194=K$1,$A195,"") ->  | L194: =IF($A194=L$1,$A195,"") -> 
A195: Cyan | F195: White
A196: White | G196: Purple
A197: Purple | K197: Purple
A198: Purple | K198: Black
A199: Black | I199: Green
A200: Green | L200: Pink
... 82 more rows

Sheet Blad2
